fUST/lending_fUST_20241006
["ID","MTS","AMOUNT","RATE_DAILY","PERIOD"]
[339938745,1728169842659,-500.0,0.00013698,2]
[339938746,1728169842669,-151.0,0.00013698,2]
[339938747,1728169842679,-151.0,0.00013698,2]
[339938748,1728169842690,-500.0,0.00013698,2]
[339938749,1728169842700,-500.0,0.00013698,2]
[339938750,1728169842711,-500.0,0.00013698,2]
[339938751,1728169842721,-500.0,0.00013698,2]
[339938752,1728169842733,-601.58,0.00013698,2]
[339938753,1728169842745,-500.0,0.00013698,2]
[339938754,1728169842755,-500.0,0.00013698,2]
[339938755,1728169842766,-500.0,0.00013698,2]
[339938756,1728169842776,-500.0,0.00013698,2]
[339938757,1728169842787,-500.0,0.00013698,2]
[339938758,1728169842797,-1491.32,0.00013698,2]
[339938759,1728169842807,-151.0,0.00013698,2]
[339938760,1728169842818,-151.0,0.00013698,2]
[339938761,1728169842829,-151.0,0.00013698,2]
[339938762,1728169842838,-151.0,0.00013698,2]
[339938763,1728169842849,-500.0,0.00013698,2]
[339938764,1728169842859,-500.0,0.00013698,2]
[339938765,1728169842870,-509.36699024,0.00013698,2]
[339938766,1728169842881,-500.0,0.00013698,2]
[339938767,1728169842893,-500.0,0.00013698,2]
[339938768,1728169842904,-500.0,0.00013698,2]
[339938769,1728169842913,-647.87,0.00013698,2]
[339938770,1728169842923,-151.0,0.00013698,2]
[339938771,1728169842934,-151.0,0.00013698,2]
[339938773,1728169842944,-500.0,0.00013698,2]
[339938774,1728169842955,-500.0,0.00013698,2]
[339938775,1728169842964,-662.75,0.00013698,2]
[339938776,1728169842973,-500.0,0.00013698,2]
[339938777,1728169842982,-500.0,0.00013698,2]
[339938778,1728169842991,-500.0,0.00013698,2]
[339938779,1728169843002,-500.0,0.00013698,2]
[339938780,1728169843011,-500.0,0.00013698,2]
[339938781,1728169843020,-605.47,0.00013698,2]
[339938782,1728169843030,-500.0,0.00013698,2]
[339938783,1728169843039,-500.0,0.00013698,2]
[339938784,1728169843048,-500.0,0.00013698,2]
[339938785,1728169843057,-500.0,0.00013698,2]
[339938786,1728169843066,-922.34,0.00013698,2]
[339938787,1728169843077,-613.42,0.00013698,2]
[339938788,1728169843086,-500.0,0.00013698,2]
[339938789,1728169843096,-500.0,0.00013698,2]
[339938790,1728169843106,-500.0,0.00013698,2]
[339938791,1728169843115,-500.0,0.00013698,2]
[339938792,1728169843127,-500.0,0.00013698,2]
[339938793,1728169843139,-500.0,0.00013698,2]
[339938794,1728169843150,-885.15,0.00013698,2]
[339938795,1728169843160,-500.0,0.00013698,2]
[339938796,1728169843171,-500.0,0.00013698,2]
[339938797,1728169843181,-500.0,0.00013698,2]
[339938798,1728169843190,-500.0,0.00013698,2]
[339938799,1728169843200,-500.0,0.00013698,2]
[339938800,1728169843211,-500.0,0.00013698,2]
[339938801,1728169843221,-500.0,0.00013698,2]
[339938802,1728169843230,-500.0,0.00013698,2]
[339938803,1728169843240,-500.0,0.00013698,2]
[339938804,1728169843249,-721.8,0.00013698,2]
[339938805,1728169843258,-500.0,0.00013698,2]
[339938806,1728169843268,-500.0,0.00013698,2]
[339938807,1728169843278,-1279.28,0.00013698,2]
[339938808,1728169843287,-500.0,0.00013698,2]
[339938809,1728169843297,-513.05,0.00013698,2]
[339938810,1728169843308,-991.78,0.00013698,2]
[339938811,1728169843318,-500.0,0.00013698,2]
[339938812,1728169843329,-500.0,0.00013698,2]
[339938813,1728169843340,-500.0,0.00013698,2]
[339938814,1728169843350,-288.81529456,0.00013698,2]
[339938815,1728169843362,-500.0,0.00013698,2]
[339938816,1728169843374,-500.0,0.00013698,2]
[339938817,1728169843384,-500.0,0.00013698,2]
[339938818,1728169843395,-500.0,0.00013698,2]
[339938819,1728169843406,-210.054483,0.00013698,2]
[339938821,1728169843417,-210.054483,0.00013698,2]
[339938823,1728169843428,-693.17,0.00013698,2]
[339938825,1728169843439,-500.0,0.00013698,2]
[339938827,1728169843450,-638.52,0.00013698,2]
[339938828,1728169843463,-647.177999,0.00013698,2]
[339938829,1728169843473,-647.177999,0.00013698,2]
[339938830,1728169843484,-151.0,0.00013698,2]
[339938831,1728169843495,-151.0,0.00013698,2]
[339938832,1728169843506,-500.0,0.00013698,2]
[339938833,1728169843517,-210.054483,0.00013698,2]
[339938834,1728169843527,-500.0,0.00013698,2]
[339938835,1728169843538,-210.054483,0.00013698,2]
[339938836,1728169843548,-500.0,0.00013698,2]
[339938837,1728169843559,-747.34,0.00013698,2]
[339938838,1728169843572,-500.0,0.00013698,2]
[339938839,1728169843583,-647.177999,0.00013698,2]
[339938840,1728169843593,-647.177999,0.00013698,2]
[339938841,1728169843603,-500.0,0.00013698,2]
[339938842,1728169843612,-573.07,0.00013698,2]
[339938843,1728169843621,-579.66,0.00013698,2]
[339938844,1728169843634,-500.0,0.00013698,2]
[339938845,1728169843643,-501.83,0.00013698,2]
[339938846,1728169843653,-500.0,0.00013698,2]
[339938847,1728169843663,-1707.03,0.00013698,2]
[339938848,1728169843673,-500.0,0.00013698,2]
[339938849,1728169843682,-500.0,0.00013698,2]
[339938850,1728169843692,-500.0,0.00013698,2]
[339938851,1728169843702,-500.0,0.00013698,2]
[339938852,1728169843712,-500.0,0.00013698,2]
[339938853,1728169843721,-540.38,0.00013698,2]
[339938854,1728169843731,-500.0,0.00013698,2]
[339938855,1728169843741,-773.34,0.00013698,2]
[339938856,1728169843751,-500.0,0.00013698,2]
[339938857,1728169843760,-500.0,0.00013698,2]
[339938858,1728169843770,-500.0,0.00013698,2]
[339938859,1728169843780,-500.0,0.00013698,2]
[339938860,1728169843789,-500.0,0.00013698,2]
[339938861,1728169843799,-500.0,0.00013698,2]
[339938862,1728169843809,-500.0,0.00013698,2]
[339938863,1728169843818,-575.01,0.00013698,2]
[339938864,1728169843828,-500.0,0.00013698,2]
[339938865,1728169843837,-500.0,0.00013698,2]
[339938866,1728169843847,-194.334406,0.00013698,2]
[339938867,1728169843856,-500.0,0.00013698,2]
[339938868,1728169843867,-194.334406,0.00013698,2]
[339938869,1728169843876,-500.0,0.00013698,2]
[339938870,1728169843886,-500.36659977,0.00013698,2]
[339938871,1728169843896,-643.02888453,0.00013698,2]
[339938872,1728169843906,-500.0,0.00013698,2]
[339938873,1728169843916,-194.334406,0.00013698,2]
[339938874,1728169843926,-194.334406,0.00013698,2]
[339938875,1728169843936,-500.0,0.00013698,2]
[339938876,1728169843946,-543.9,0.00013698,2]
[339938877,1728169843955,-151.0,0.00013698,2]
[339938878,1728169843965,-151.0,0.00013698,2]
[339938879,1728169843975,-151.0,0.00013698,2]
[339938880,1728169843985,-151.0,0.00013698,2]
[339938881,1728169843994,-793.23,0.00013698,2]
[339938882,1728169844004,-1396.449252,0.00013698,2]
[339938883,1728169844014,-1396.449252,0.00013698,2]
[339938884,1728169844023,-151.0,0.00013698,2]
[339938885,1728169844033,-151.0,0.00013698,2]
[339938886,1728169844043,-500.0,0.00013698,2]
[339938887,1728169844053,-1435.68,0.00013698,2]
[339938888,1728169844062,-500.0,0.00013698,2]
[339938889,1728169844072,-500.0,0.00013698,2]
[339938890,1728169844082,-500.0,0.00013698,2]
[339938891,1728169844095,-500.0,0.00013698,2]
[339938892,1728169844106,-500.0,0.00013698,2]
[339938893,1728169844116,-151.0,0.00013698,2]
[339938894,1728169844126,-1396.449252,0.00013698,2]
[339938895,1728169844138,-151.0,0.00013698,2]
[339938896,1728169844148,-500.0,0.00013698,2]
[339938897,1728169844158,-1396.449252,0.00013698,2]
[339938898,1728169844168,-500.0,0.00013698,2]
[339938899,1728169844177,-500.0,0.00013698,2]
[339938900,1728169844187,-500.0,0.00013698,2]
[339938901,1728169844197,-500.0,0.00013698,2]
[339938902,1728169844207,-151.0,0.00013698,2]
[339938903,1728169844217,-735.47,0.00013698,2]
[339938904,1728169844226,-151.0,0.00013698,2]
[339938905,1728169844236,-500.0,0.00013698,2]
[339938906,1728169844247,-500.0,0.00013698,2]
[339938907,1728169844257,-500.0,0.00013698,2]
[339938908,1728169844267,-333.04050683,0.00013698,2]
[339938909,1728169844277,-500.0,0.00013698,2]
[339938910,1728169844287,-102.5270329,0.00013698,2]
[339938911,1728169844942,-48.4729671,0.00013698,2]
[339938912,1728169844953,-151.0,0.00013698,2]
[339938913,1728169844963,-512.0,0.00013698,2]
[339938914,1728169844975,-500.0,0.00013698,2]
[339938915,1728169844987,-500.0,0.00013698,2]
[339938916,1728169845001,-151.0,0.00013698,2]
[339938917,1728169845018,-151.0,0.00013698,2]
[339938918,1728169845031,-500.0,0.00013698,2]
[339938919,1728169845043,-500.0,0.00013698,2]
[339938920,1728169845055,-811.88,0.00013698,2]
[339938921,1728169845065,-322.97837058,0.00013698,2]
[339938922,1728169845074,-500.0,0.00013698,2]
[339938923,1728169845085,-500.0,0.00013698,2]
[339938924,1728169845096,-1756.48,0.00013698,2]
[339938925,1728169845107,-151.0,0.00013698,2]
[339938926,1728169845116,-151.0,0.00013698,2]
[339938927,1728169845126,-500.0,0.00013698,2]
[339938928,1728169845137,-500.0,0.00013698,2]
[339938929,1728169845147,-26980.58,0.00013698,2]
[339938930,1728169845156,-191.096483,0.00013698,2]
[339938931,1728169845166,-500.0,0.00013698,2]
[339938932,1728169845176,-500.0,0.00013698,2]
[339938933,1728169845186,-151.0,0.00013698,2]
[339938934,1728169845196,-151.0,0.00013698,2]
[339938935,1728169845205,-500.0,0.00013698,2]
[339938936,1728169845215,-500.0,0.00013698,2]
[339938937,1728169845224,-500.0,0.00013698,2]
[339938938,1728169845234,-975.25,0.00013698,2]
[339938939,1728169845243,-500.0,0.00013698,2]
[339938940,1728169845253,-585.51,0.00013698,2]
[339938941,1728169845262,-1020.03,0.00013698,2]
[339938942,1728169845272,-480.718268,0.00013698,2]
[339938943,1728169845282,-568.63,0.00013698,2]
[339938944,1728169845292,-480.718268,0.00013698,2]
[339938945,1728169845302,-4310.71,0.00013698,2]
[339938946,1728169845311,-3217.59,0.00013698,2]
[339938947,1728169845528,-480.718268,0.00013698,2]
[339938948,1728169845539,-480.718268,0.00013698,2]
[339938949,1728169845550,-500.0,0.00013698,2]
[339938950,1728169845560,-1538.09,0.00013698,2]
[339938951,1728169845575,-500.0,0.00013698,2]
[339938952,1728169845586,-344.02980185,0.00013698,2]
[339938953,1728169845601,-155.97019815,0.00013698,2]
[339938954,1728169845611,-500.0,0.00013698,2]
[339938955,1728169845622,-500.0,0.00013698,2]
[339938956,1728169845633,-500.0,0.00013698,2]
[339938957,1728169845644,-151.0,0.00013698,2]
[339938958,1728169845655,-151.0,0.00013698,2]
[339938959,1728169845665,-500.0,0.00013698,2]
[339938960,1728169845674,-2333.01,0.00013698,2]
[339938961,1728169845685,-134.31980107,0.00013698,2]
[339938962,1728169845696,-365.68019893,0.00013698,2]
[339938963,1728169845705,-151.0,0.00013698,2]
[339938964,1728169845715,-151.0,0.00013698,2]
[339938965,1728169845725,-151.0,0.00013698,2]
[339938966,1728169845734,-151.0,0.00013698,2]
[339938967,1728169845744,-500.0,0.00013698,2]
[339938968,1728169845753,-1028.49,0.00013698,2]
[339938969,1728169845762,-151.0,0.00013698,2]
[339938970,1728169845771,-151.0,0.00013698,2]
[339938971,1728169845780,-500.0,0.00013698,2]
[339938972,1728169845789,-565.12,0.00013698,2]
[339938973,1728169845798,-500.0,0.00013698,2]
[339938974,1728169845808,-215.27703166,0.00013698,2]
[339938975,1728169846058,-436.17296834,0.00013698,2]
[339938976,1728169846068,-178.82703166,0.00013698,2]
[339938983,1728169846555,-338.89296834,0.00013698,2]
[339938984,1728169846566,-372.32151528,0.00013698,2]
[339938985,1728169846582,-127.67848472,0.00013698,2]
[339938986,1728169846592,-180.36624153,0.00013698,2]
[339939060,1728171038788,-379.415206,0.00012,2]
[339939061,1728171038799,-1395.514794,0.00013561,2]
[339939066,1728171038854,-6605.12097075,0.00013561,2]
[339939067,1728171038864,-2639.35013461,0.00013574,2]
[339939068,1728171038874,-287.67795531,0.00013578,2]
[339939069,1728171038884,-287.6779553,0.00013581,2]
[339939070,1728171038894,-287.6779553,0.00013583,2]
[339939071,1728171038904,-287.6779553,0.00013586,2]
[339939072,1728171038914,-1000.0,0.00013588,2]
[339939073,1728171038925,-745.88972904,0.00013598,2]
[339939074,1728171038935,-300.0,0.00013667,2]
[339939075,1728171038945,-300.0,0.00013668,2]
[339939076,1728171038955,-13296.87360848,0.00013672,2]
[339939077,1728171038968,-613.01150124,0.00013672,2]
[339939078,1728171038978,-500.0,0.00013673,2]
[339939079,1728171038988,-500.0,0.00013673,2]
[339939080,1728171038998,-43344.45306534,0.00013673,2]
[339939081,1728171039010,-26515.20051919,0.00013678,2]
[339939095,1728171040737,-287.6779553,0.00013588,2]
[339939096,1728171040748,-19611.63925581,0.00013678,2]
[339939097,1728171040758,-48120.4790204,0.00013678,2]
[339939098,1728171040768,-3299.4650968,0.00013685,2]
[339939099,1728171040779,-46126.839775,0.00013688,2]
[339939100,1728171040789,-48120.4790204,0.00013688,2]
[339939101,1728171040799,-168.506,0.00013688,2]
[339939102,1728171040809,-151.0,0.00013688,2]
[339939103,1728171040819,-151.0,0.00013688,2]
[339939104,1728171040828,-178.914756,0.00013688,2]
[339939105,1728171040838,-264.820244,0.00013688,2]
[339939106,1728171040848,-264.820244,0.00013688,2]
[339939107,1728171040858,-257.858251,0.00013688,2]
[339939108,1728171040868,-257.858251,0.00013688,2]
[339939109,1728171040878,-268.124848,0.00013688,2]
[339939110,1728171040888,-151.0,0.00013688,2]
[339939111,1728171040898,-268.124848,0.00013688,2]
[339939112,1728171040908,-151.0,0.00013688,2]
[339939113,1728171040918,-123004.906067,0.00013688,2]
[339939114,1728171040927,-160401.596735,0.00013688,2]
[339939115,1728171040938,-89513.05490894,0.00013698,2]
[339939116,1728171040949,-13000.2700885,0.00013698,2]
[339939117,1728171040962,-6634.01203322,0.00013698,2]
[339939118,1728171040972,-37654.7431305,0.00013698,2]
[339939119,1728171040981,-500.0,0.00013698,2]
[339939120,1728171040991,-500.0,0.00013698,2]
[339939121,1728171041001,-466.51510325,0.00013698,2]
[339939122,1728171041011,-500.0,0.00013698,2]
[339939123,1728171041021,-500.0,0.00013698,2]
[339939124,1728171041032,-500.0,0.00013698,2]
[339939125,1728171041042,-500.0,0.00013698,2]
[339939126,1728171041052,-500.0,0.00013698,2]
[339939127,1728171041062,-500.0,0.00013698,2]
[339939128,1728171041072,-500.0,0.00013698,2]
[339939129,1728171041082,-191.15604439,0.00013698,2]
[339939130,1728171041092,-500.0,0.00013698,2]
[339939131,1728171041102,-242.12981629,0.00013698,2]
[339939132,1728171041112,-353.00635938,0.00013698,2]
[339939133,1728171041122,-500.0,0.00013698,2]
[339939134,1728171041132,-500.0,0.00013698,2]
[339939135,1728171041142,-277.20661547,0.00013698,2]
[339939136,1728171041152,-500.0,0.00013698,2]
[339939137,1728171041161,-500.0,0.00013698,2]
[339939138,1728171041176,-500.0,0.00013698,2]
[339939139,1728171041186,-500.0,0.00013698,2]
[339939140,1728171041196,-500.0,0.00013698,2]
[339939141,1728171041205,-500.0,0.00013698,2]
[339939142,1728171041216,-330.20395603,0.00013698,2]
[339939143,1728171041227,-491.50594457,0.00013698,2]
[339939144,1728171041237,-500.0,0.00013698,2]
[339939145,1728171041247,-500.0,0.00013698,2]
[339939146,1728171041260,-500.0,0.00013698,2]
[339939147,1728171041271,-500.0,0.00013698,2]
[339939148,1728171041282,-500.0,0.00013698,2]
[339939149,1728171041294,-518.48,0.00013698,2]
[339939150,1728171041306,-500.0,0.00013698,2]
[339939151,1728171041318,-500.0,0.00013698,2]
[339939152,1728171041329,-500.0,0.00013698,2]
[339939153,1728171041340,-427.88440618,0.00013698,2]
[339939154,1728171041351,-500.0,0.00013698,2]
[339939155,1728171041363,-500.0,0.00013698,2]
[339939156,1728171041375,-500.0,0.00013698,2]
[339939157,1728171041387,-377.03,0.00013698,2]
[339939158,1728171041399,-500.0,0.00013698,2]
[339939159,1728171041411,-500.0,0.00013698,2]
[339939160,1728171041421,-500.0,0.00013698,2]
[339939161,1728171041432,-500.0,0.00013698,2]
[339939162,1728171041444,-500.0,0.00013698,2]
[339939163,1728171041455,-500.0,0.00013698,2]
[339939164,1728171041467,-500.0,0.00013698,2]
[339939165,1728171041477,-500.0,0.00013698,2]
[339939166,1728171041489,-505.53873901,0.00013698,2]
[339939167,1728171041500,-500.0,0.00013698,2]
[339939168,1728171041510,-500.0,0.00013698,2]
[339939169,1728171041521,-500.0,0.00013698,2]
[339939170,1728171041532,-500.0,0.00013698,2]
[339939171,1728171041544,-500.0,0.00013698,2]
[339939172,1728171041556,-630.04,0.00013698,2]
[339939173,1728171041566,-500.0,0.00013698,2]
[339939174,1728171041577,-315.42531796,0.00013698,2]
[339939186,1728171046744,-151.0,0.00013688,2]
[339939187,1728171046755,-151.0,0.00013688,2]
[339939188,1728171046764,-184.57468204,0.00013698,2]
[339939189,1728171046774,-500.0,0.00013698,2]
[339939190,1728171046783,-500.0,0.00013698,2]
[339939191,1728171046792,-500.0,0.00013698,2]
[339939192,1728171046802,-500.0,0.00013698,2]
[339939193,1728171046811,-500.0,0.00013698,2]
[339939194,1728171046820,-506.61,0.00013698,2]
[339939195,1728171046829,-500.0,0.00013698,2]
[339939196,1728171046838,-500.0,0.00013698,2]
[339939197,1728171046847,-500.0,0.00013698,2]
[339939198,1728171046856,-500.0,0.00013698,2]
[339939199,1728171046866,-500.0,0.00013698,2]
[339939200,1728171046876,-500.0,0.00013698,2]
[339939201,1728171046886,-500.0,0.00013698,2]
[339939202,1728171046895,-500.0,0.00013698,2]
[339939203,1728171046905,-500.0,0.00013698,2]
[339939204,1728171046914,-500.0,0.00013698,2]
[339939205,1728171046924,-500.0,0.00013698,2]
[339939206,1728171046934,-500.0,0.00013698,2]
[339939207,1728171046943,-500.0,0.00013698,2]
[339939208,1728171046953,-500.0,0.00013698,2]
[339939209,1728171046963,-731.54,0.00013698,2]
[339939210,1728171046972,-500.0,0.00013698,2]
[339939211,1728171046981,-466.69740991,0.00013698,2]
[339939212,1728171046991,-760.99,0.00013698,2]
[339939213,1728171047000,-500.0,0.00013698,2]
[339939214,1728171047010,-500.0,0.00013698,2]
[339939215,1728171047019,-500.0,0.00013698,2]
[339939216,1728171047029,-500.0,0.00013698,2]
[339939217,1728171047038,-500.0,0.00013698,2]
[339939218,1728171047047,-500.0,0.00013698,2]
[339939219,1728171047056,-717.8,0.00013698,2]
[339939220,1728171047065,-500.0,0.00013698,2]
[339939221,1728171047076,-500.0,0.00013698,2]
[339939222,1728171047086,-500.0,0.00013698,2]
[339939223,1728171047095,-500.0,0.00013698,2]
[339939224,1728171047105,-276.75764162,0.00013698,2]
[339939225,1728171047114,-373.98779234,0.00013698,2]
[339939226,1728171047123,-500.0,0.00013698,2]
[339939227,1728171047132,-500.0,0.00013698,2]
[339939228,1728171047142,-500.0,0.00013698,2]
[339939229,1728171047151,-500.0,0.00013698,2]
[339939230,1728171047160,-500.0,0.00013698,2]
[339939231,1728171047169,-568.78,0.00013698,2]
[339939232,1728171047179,-500.0,0.00013698,2]
[339939233,1728171047188,-500.0,0.00013698,2]
[339939234,1728171047197,-781.47,0.00013698,2]
[339939235,1728171047207,-500.0,0.00013698,2]
[339939236,1728171047216,-728.69,0.00013698,2]
[339939237,1728171047226,-500.0,0.00013698,2]
[339939238,1728171047235,-592.64892974,0.00013698,2]
[339939239,1728171047245,-500.0,0.00013698,2]
[339939240,1728171047255,-1266.26,0.00013698,2]
[339939241,1728171047264,-500.0,0.00013698,2]
[339939242,1728171047273,-500.0,0.00013698,2]
[339939243,1728171047283,-500.0,0.00013698,2]
[339939244,1728171047292,-180.52734661,0.00013698,2]
[339939245,1728171047301,-500.0,0.00013698,2]
[339939246,1728171047311,-500.0,0.00013698,2]
[339939247,1728171047320,-500.0,0.00013698,2]
[339939248,1728171047329,-177.78,0.00013698,2]
[339939249,1728171047339,-814.42,0.00013698,2]
[339939250,1728171047348,-500.0,0.00013698,2]
[339939251,1728171047357,-500.0,0.00013698,2]
[339939252,1728171047367,-500.0,0.00013698,2]
[339939253,1728171047376,-500.0,0.00013698,2]
[339939254,1728171047386,-500.0,0.00013698,2]
[339939255,1728171047395,-500.0,0.00013698,2]
[339939256,1728171047405,-500.0,0.00013698,2]
[339939257,1728171047414,-500.0,0.00013698,2]
[339939258,1728171047423,-500.0,0.00013698,2]
[339939259,1728171047433,-500.0,0.00013698,2]
[339939260,1728171047442,-500.0,0.00013698,2]
[339939261,1728171047451,-500.0,0.00013698,2]
[339939262,1728171047462,-543.03,0.00013698,2]
[339939263,1728171047471,-743.16,0.00013698,2]
[339939264,1728171047480,-514.44,0.00013698,2]
[339939265,1728171047490,-500.0,0.00013698,2]
[339939266,1728171047499,-500.0,0.00013698,2]
[339939267,1728171047514,-500.0,0.00013698,2]
[339939268,1728171047523,-500.0,0.00013698,2]
[339939269,1728171047532,-500.0,0.00013698,2]
[339939270,1728171047541,-500.0,0.00013698,2]
[339939271,1728171047550,-500.0,0.00013698,2]
[339939272,1728171047561,-500.0,0.00013698,2]
[339939273,1728171047570,-500.0,0.00013698,2]
[339939274,1728171047582,-500.0,0.00013698,2]
[339939275,1728171047592,-500.0,0.00013698,2]
[339939276,1728171047602,-500.0,0.00013698,2]
[339939277,1728171047612,-500.0,0.00013698,2]
[339939278,1728171047623,-500.0,0.00013698,2]
[339939279,1728171047636,-522.56162264,0.00013698,2]
[339939280,1728171047647,-1000.0,0.00013698,2]
[339939281,1728171047657,-500.0,0.00013698,2]
[339939282,1728171047667,-500.0,0.00013698,2]
[339939283,1728171047678,-500.0,0.00013698,2]
[339939284,1728171047687,-332.62448985,0.00013698,2]
[339939285,1728171047698,-620.88,0.00013698,2]
[339939286,1728171047707,-500.0,0.00013698,2]
[339939287,1728171047716,-539.14334618,0.00013698,2]
[339939288,1728171047728,-500.0,0.00013698,2]
[339939289,1728171047737,-500.0,0.00013698,2]
[339939290,1728171047747,-500.0,0.00013698,2]
[339939291,1728171047758,-500.0,0.00013698,2]
[339939292,1728171047767,-500.0,0.00013698,2]
[339939293,1728171047777,-500.0,0.00013698,2]
[339939294,1728171047786,-500.0,0.00013698,2]
[339939295,1728171047796,-635.13,0.00013698,2]
[339939296,1728171047807,-500.0,0.00013698,2]
[339939297,1728171047817,-500.0,0.00013698,2]
[339939298,1728171047827,-500.0,0.00013698,2]
[339939299,1728171047837,-749.65,0.00013698,2]
[339939300,1728171047847,-196.18114167,0.00013698,2]
[339939301,1728171047857,-500.0,0.00013698,2]
[339939302,1728171047866,-587.86,0.00013698,2]
[339939303,1728171047876,-500.0,0.00013698,2]
[339939304,1728171047886,-500.0,0.00013698,2]
[339939305,1728171047895,-151.0,0.00013698,2]
[339939306,1728171047905,-151.0,0.00013698,2]
[339939307,1728171047914,-500.0,0.00013698,2]
[339939308,1728171047923,-500.0,0.00013698,2]
[339939309,1728171047933,-1429.18,0.00013698,2]
[339939310,1728171047942,-500.0,0.00013698,2]
[339939311,1728171047951,-500.0,0.00013698,2]
[339939312,1728171047963,-500.0,0.00013698,2]
[339939313,1728171047972,-500.0,0.00013698,2]
[339939314,1728171047982,-177.16882849,0.00013698,2]
[339939315,1728171047992,-500.0,0.00013698,2]
[339939316,1728171048002,-500.0,0.00013698,2]
[339939317,1728171048012,-500.0,0.00013698,2]
[339939319,1728171048022,-500.0,0.00013698,2]
[339939320,1728171048032,-500.0,0.00013698,2]
[339939321,1728171048043,-500.0,0.00013698,2]
[339939322,1728171048053,-768.32,0.00013698,2]
[339939323,1728171048063,-500.0,0.00013698,2]
[339939324,1728171048072,-500.0,0.00013698,2]
[339939325,1728171048083,-500.0,0.00013698,2]
[339939326,1728171048092,-500.0,0.00013698,2]
[339939327,1728171048102,-500.0,0.00013698,2]
[339939328,1728171048111,-500.0,0.00013698,2]
[339939329,1728171048121,-576.51,0.00013698,2]
[339939330,1728171048131,-500.0,0.00013698,2]
[339939331,1728171048141,-500.0,0.00013698,2]
[339939332,1728171048151,-555.51,0.00013698,2]
[339939333,1728171048161,-500.0,0.00013698,2]
[339939334,1728171048171,-500.0,0.00013698,2]
[339939335,1728171048181,-1225.98,0.00013698,2]
[339939336,1728171048191,-950.45,0.00013698,2]
[339939337,1728171048202,-500.0,0.00013698,2]
[339939338,1728171048212,-593.35747406,0.00013698,2]
[339939339,1728171048223,-500.0,0.00013698,2]
[339939340,1728171048232,-500.0,0.00013698,2]
[339939341,1728171048243,-500.0,0.00013698,2]
[339939342,1728171048252,-500.0,0.00013698,2]
[339939343,1728171048263,-500.0,0.00013698,2]
[339939344,1728171048273,-500.0,0.00013698,2]
[339939345,1728171048283,-500.0,0.00013698,2]
[339939346,1728171048294,-634.2,0.00013698,2]
[339939347,1728171048304,-500.0,0.00013698,2]
[339939348,1728171048315,-151.0,0.00013698,2]
[339939349,1728171048326,-151.0,0.00013698,2]
[339939350,1728171048336,-151.0,0.00013698,2]
[339939351,1728171048347,-151.0,0.00013698,2]
[339939352,1728171048356,-500.0,0.00013698,2]
[339939353,1728171048366,-151.0,0.00013698,2]
[339939354,1728171048376,-151.0,0.00013698,2]
[339939355,1728171048386,-500.0,0.00013698,2]
[339939356,1728171048396,-500.0,0.00013698,2]
[339939357,1728171048405,-500.0,0.00013698,2]